[Event "Titled Tuesday Blitz November 07 Late 2023"]
[White "MKlose11"]
[Black "Keleberda, Tymur"]
[BlackFideId "14174294"]
[WhiteElo "2717"]
[BlackElo "2518"]
[Result "1/2-1/2"]
[Round "4"]
[TimeControl "180+1"]
[Date "2023.11.07"]
[WhiteClock "0:00:08"]
[BlackClock "0:00:11"]
[Board "55"]

1. e4 {[%clk 0:02:56]}  c5 {[%clk 0:02:59]} 2. Nc3 {[%clk 0:02:56]}  d6 {[%clk 0:02:59]} 3. g3 {[%clk 0:02:57]}  Nf6 {[%clk 0:02:59]} 4. Bg2 {[%clk 0:02:57]}  g6 {[%clk 0:02:59]} 5. d3 {[%clk 0:02:57]}  Bg7 {[%clk 0:03:00]} 6. h3 {[%clk 0:02:58]}  O-O {[%clk 0:03:00]} 7. Nge2 {[%clk 0:02:58]}  Nc6 {[%clk 0:03:00]} 8. Be3 {[%clk 0:02:58]}  Rb8 {[%clk 0:02:58]} 9. Qd2 {[%clk 0:02:58]}  b5 {[%clk 0:02:52]} 10. Bh6 {[%clk 0:02:57]}  b4 {[%clk 0:02:52]} 11. Nd1 {[%clk 0:02:56]}  Nd4 {[%clk 0:02:49]} 12. Bxg7 {[%clk 0:02:39]}  Kxg7 {[%clk 0:02:48]} 13. Ne3 {[%clk 0:02:37]}  a5 {[%clk 0:02:46]} 14. f4 {[%clk 0:02:37]}  e5 {[%clk 0:02:44]} 15. O-O {[%clk 0:02:34]}  Bb7 {[%clk 0:02:43]} 16. g4 {[%clk 0:02:18]}  Nxe2+ {[%clk 0:02:40]} 17. Qxe2 {[%clk 0:02:18]}  exf4 {[%clk 0:02:38]} 18. Rxf4 {[%clk 0:02:19]}  Nd7 {[%clk 0:02:32]} 19. Raf1 {[%clk 0:02:14]}  Ne5 {[%clk 0:02:30]} 20. Qf2 {[%clk 0:01:29]}  Qe7 {[%clk 0:02:20]} 21. Qg3 {[%clk 0:01:29]}  Qe6 {[%clk 0:02:07]} 22. g5 {[%clk 0:01:11]}  Qxa2 {[%clk 0:01:57]} 23. b3 {[%clk 0:01:10]}  a4 {[%clk 0:01:51]} 24. bxa4 {[%clk 0:01:00]}  Qxa4 {[%clk 0:01:50]} 25. Rf6 {[%clk 0:01:00]}  b3 {[%clk 0:01:32]} 26. Rxd6 {[%clk 0:00:57]}  Rbe8 {[%clk 0:01:24]} 27. cxb3 {[%clk 0:00:55]}  Qxb3 {[%clk 0:01:24]} 28. Kh1 {[%clk 0:00:46]}  Re6 {[%clk 0:00:52]} 29. Rxe6 {[%clk 0:00:38]}  Qxe6 {[%clk 0:00:53]} 30. Rb1 {[%clk 0:00:38]}  Bc6 {[%clk 0:00:47]} 31. Rb6 {[%clk 0:00:35]}  Qe7 {[%clk 0:00:39]} 32. Ng4 {[%clk 0:00:15]}  Nxg4 {[%clk 0:00:32]} 33. Qxg4 {[%clk 0:00:16]}  Ba8 {[%clk 0:00:25]} 34. Qf4 {[%clk 0:00:14]}  Rd8 {[%clk 0:00:24]} 35. Rb3 {[%clk 0:00:13]}  Qd6 {[%clk 0:00:15]} 36. Qxd6 {[%clk 0:00:10]}  Rxd6 {[%clk 0:00:16]} 37. Rc3 {[%clk 0:00:11]}  c4 {[%clk 0:00:09]} 38. dxc4 {[%clk 0:00:08]}  Rd4 {[%clk 0:00:09]} 39. c5 {[%clk 0:00:07]}  Bxe4 {[%clk 0:00:09]} 40. Bxe4 {[%clk 0:00:08]}  Rxe4 {[%clk 0:00:10]} 41. c6 {[%clk 0:00:09]}  Re8 {[%clk 0:00:10]} 42. Kg2 {[%clk 0:00:04]}  f6 {[%clk 0:00:07]} 43. gxf6+ {[%clk 0:00:02]}  Kxf6 {[%clk 0:00:07]} 44. Kf3 {[%clk 0:00:03]}  Rc8 {[%clk 0:00:06]} 45. Kf4 {[%clk 0:00:02]}  h6 {[%clk 0:00:05]} 46. c7 {[%clk 0:00:02]}  Kf7 {[%clk 0:00:01]} 47. Rc6 {[%clk 0:00:03]}  h5 {[%clk 0:00:01]} 48. Kg5 {[%clk 0:00:03]}  Ke7 {[%clk 0:00:01]} 49. Kxg6 {[%clk 0:00:03]}  h4 {[%clk 0:00:01]} 50. Kg5 {[%clk 0:00:03]}  Kd7 {[%clk 0:00:02]} 51. Rc5 {[%clk 0:00:03]}  Rxc7 {[%clk 0:00:03]} 52. Rxc7+ {[%clk 0:00:03]}  Kxc7 {[%clk 0:00:04]} 53. Kxh4 {[%clk 0:00:03]}  Kd7 {[%clk 0:00:04]} 54. Kg5 {[%clk 0:00:04]}  Ke7 {[%clk 0:00:05]} 55. Kg6 {[%clk 0:00:04]}  Kf8 {[%clk 0:00:06]} 56. Kh7 {[%clk 0:00:05]}  Kf7 {[%clk 0:00:07]} 57. h4 {[%clk 0:00:06]}  Kf8 {[%clk 0:00:08]} 58. h5 {[%clk 0:00:07]}  Kf7 {[%clk 0:00:08]} 59. h6 {[%clk 0:00:07]}  Kf8 {[%clk 0:00:09]} 60. Kh8 {[%clk 0:00:07]}  Kf7 {[%clk 0:00:10]} 61. h7 {[%clk 0:00:08]}  Kf8 {[%clk 0:00:11]} 1/2-1/2


[Site "https://www.chess.com"]

[Event "Titled Tuesday Blitz November 07 Late 2023"]
[White "Nilsen, Tobias Lang"]
[Black "Pakleza, Zbigniew"]
[WhiteFideId "1521624"]
[BlackFideId "1119290"]
[WhiteElo "2513"]
[BlackElo "2706"]
[Result "0-1"]
[Round "4"]
[TimeControl "180+1"]
[Date "2023.11.07"]
[WhiteClock "0:00:02"]
[BlackClock "0:00:03"]
[Board "57"]

1. e4 {[%clk 0:03:00]}  d6 {[%clk 0:03:00]} 2. d4 {[%clk 0:03:00]}  Nf6 {[%clk 0:03:01]} 3. Nc3 {[%clk 0:03:00]}  c6 {[%clk 0:03:01]} 4. Nf3 {[%clk 0:02:57]}  Bg4 {[%clk 0:03:01]} 5. h3 {[%clk 0:02:57]}  Bh5 {[%clk 0:03:00]} 6. a4 {[%clk 0:02:55]}  e6 {[%clk 0:03:00]} 7. Bd3 {[%clk 0:02:54]}  d5 {[%clk 0:02:59]} 8. e5 {[%clk 0:02:54]}  Nfd7 {[%clk 0:02:59]} 9. O-O {[%clk 0:02:46]}  c5 {[%clk 0:02:55]} 10. dxc5 {[%clk 0:02:45]}  Bxc5 {[%clk 0:02:52]} 11. Bf4 {[%clk 0:02:42]}  Nc6 {[%clk 0:02:50]} 12. Nb5 {[%clk 0:02:23]}  O-O {[%clk 0:02:26]} 13. Re1 {[%clk 0:02:03]}  Qb6 {[%clk 0:02:17]} 14. Bg3 {[%clk 0:01:23]}  Bxf3 {[%clk 0:01:39]} 15. Qxf3 {[%clk 0:01:18]}  a6 {[%clk 0:01:39]} 16. Nd6 {[%clk 0:01:12]}  Ncxe5 {[%clk 0:01:35]} 17. Bxe5 {[%clk 0:00:52]}  Nxe5 {[%clk 0:01:33]} 18. Rxe5 {[%clk 0:00:47]}  Bxd6 {[%clk 0:01:25]} 19. Ree1 {[%clk 0:00:31]}  g6 {[%clk 0:00:54]} 20. b3 {[%clk 0:00:30]}  Rac8 {[%clk 0:00:48]} 21. h4 {[%clk 0:00:29]}  Qd4 {[%clk 0:00:45]} 22. h5 {[%clk 0:00:26]}  Qh4 {[%clk 0:00:41]} 23. g3 {[%clk 0:00:22]}  Qxh5 {[%clk 0:00:41]} 24. Qxh5 {[%clk 0:00:22]}  gxh5 {[%clk 0:00:42]} 25. Kg2 {[%clk 0:00:21]}  h4 {[%clk 0:00:42]} 26. Rh1 {[%clk 0:00:15]}  hxg3 {[%clk 0:00:40]} 27. Rxh7 {[%clk 0:00:14]}  gxf2 {[%clk 0:00:41]} 28. Kxf2 {[%clk 0:00:10]}  Bc5+ {[%clk 0:00:35]} 29. Ke2 {[%clk 0:00:09]}  Bd4 {[%clk 0:00:20]} 30. Rah1 {[%clk 0:00:09]}  f5 {[%clk 0:00:07]} 31. Rxb7 {[%clk 0:00:07]}  Rf7 {[%clk 0:00:08]} 32. Rxf7 {[%clk 0:00:02]}  Kxf7 {[%clk 0:00:09]} 33. Rh7+ {[%clk 0:00:02]}  Kf6 {[%clk 0:00:09]} 34. Rh1 {[%clk 0:00:03]}  a5 {[%clk 0:00:08]} 35. Kd2 {[%clk 0:00:03]}  Bc3+ {[%clk 0:00:07]} 36. Kd1 {[%clk 0:00:03]}  Rg8 {[%clk 0:00:08]} 37. Rf1 {[%clk 0:00:03]}  Rg2 {[%clk 0:00:07]} 38. Be2 {[%clk 0:00:03]}  Ke5 {[%clk 0:00:06]} 39. Rf3 {[%clk 0:00:04]}  d4 {[%clk 0:00:05]} 40. Rf1 {[%clk 0:00:02]}  Rh2 {[%clk 0:00:04]} 41. Kc1 {[%clk 0:00:02]}  Kd6 {[%clk 0:00:04]} 42. Bc4 {[%clk 0:00:02]}  Rh4 {[%clk 0:00:02]} 43. Kd1 {[%clk 0:00:02]}  Rh5 {[%clk 0:00:02]} 44. Ke2 {[%clk 0:00:03]}  e5 {[%clk 0:00:02]} 45. Rf3 {[%clk 0:00:02]}  e4 {[%clk 0:00:02]} 46. Rg3 {[%clk 0:00:03]}  Rh2+ {[%clk 0:00:02]} 47. Kf1 {[%clk 0:00:03]}  Ke5 {[%clk 0:00:02]} 48. Rg6 {[%clk 0:00:03]}  Rxc2 {[%clk 0:00:02]} 49. Rc6 {[%clk 0:00:03]}  Kf4 {[%clk 0:00:02]} 50. Rf6 {[%clk 0:00:03]}  d3 {[%clk 0:00:02]} 51. Be6 {[%clk 0:00:03]}  Rc1+ {[%clk 0:00:02]} 52. Kg2 {[%clk 0:00:02]}  Bxf6 {[%clk 0:00:03]} 0-1


[Site "https://www.chess.com"]

[Event "Titled Tuesday Blitz November 07 Late 2023"]
[White "Luczak, Filip"]
[Black "Kochiev, Ivan"]
[WhiteFideId "1193686"]
[BlackFideId "2917890"]
[WhiteElo "2690"]
[BlackElo "2502"]
[Result "0-1"]
[Round "4"]
[TimeControl "180+1"]
[Date "2023.11.07"]
[WhiteClock "0:00:19"]
[BlackClock "0:00:09"]
[Board "60"]

1. d4 {[%clk 0:02:56]}  Nf6 {[%clk 0:02:59]} 2. Nc3 {[%clk 0:02:56]}  d5 {[%clk 0:02:59]} 3. Bf4 {[%clk 0:02:57]}  a6 {[%clk 0:02:59]} 4. e3 {[%clk 0:02:57]}  Bf5 {[%clk 0:03:00]} 5. f3 {[%clk 0:02:56]}  h6 {[%clk 0:02:58]} 6. g4 {[%clk 0:02:55]}  Bh7 {[%clk 0:02:58]} 7. h4 {[%clk 0:02:52]}  e6 {[%clk 0:02:49]} 8. g5 {[%clk 0:02:52]}  Nh5 {[%clk 0:02:45]} 9. Nh3 {[%clk 0:02:43]}  Nxf4 {[%clk 0:02:41]} 10. exf4 {[%clk 0:02:37]}  Bd6 {[%clk 0:02:27]} 11. Bd3 {[%clk 0:02:35]}  Bxd3 {[%clk 0:02:23]} 12. Qxd3 {[%clk 0:02:35]}  hxg5 {[%clk 0:02:23]} 13. hxg5 {[%clk 0:02:24]}  Bxf4 {[%clk 0:02:20]} 14. g6 {[%clk 0:02:20]}  f6 {[%clk 0:02:05]} 15. Ne2 {[%clk 0:02:15]}  Bd6 {[%clk 0:01:59]} 16. O-O-O {[%clk 0:02:11]}  Nd7 {[%clk 0:01:49]} 17. Nhf4 {[%clk 0:02:07]}  Rxh1 {[%clk 0:01:47]} 18. Rxh1 {[%clk 0:02:08]}  Qe7 {[%clk 0:01:45]} 19. Qe3 {[%clk 0:01:56]}  Nf8 {[%clk 0:01:45]} 20. Rh8 {[%clk 0:01:49]}  O-O-O {[%clk 0:01:44]} 21. Rg8 {[%clk 0:01:50]}  c6 {[%clk 0:01:27]} 22. Nh5 {[%clk 0:01:45]}  Rd7 {[%clk 0:01:20]} 23. Rxg7 {[%clk 0:01:16]}  Qxg7 {[%clk 0:01:20]} 24. Nxg7 {[%clk 0:01:16]}  Rxg7 {[%clk 0:01:21]} 25. Nf4 {[%clk 0:01:15]}  Kd7 {[%clk 0:00:56]} 26. c3 {[%clk 0:01:09]}  e5 {[%clk 0:00:53]} 27. dxe5 {[%clk 0:01:10]}  fxe5 {[%clk 0:00:54]} 28. Nd3 {[%clk 0:01:07]}  Nxg6 {[%clk 0:00:54]} 29. Qh6 {[%clk 0:01:06]}  Rg8 {[%clk 0:00:50]} 30. Qh3+ {[%clk 0:00:57]}  Kc7 {[%clk 0:00:40]} 31. Qe6 {[%clk 0:00:56]}  Rg7 {[%clk 0:00:39]} 32. Qf6 {[%clk 0:00:53]}  Rg8 {[%clk 0:00:38]} 33. Qf7+ {[%clk 0:00:46]}  Ne7 {[%clk 0:00:37]} 34. Nxe5 {[%clk 0:00:45]}  Rg1+ {[%clk 0:00:32]} 35. Kc2 {[%clk 0:00:45]}  Kb6 {[%clk 0:00:27]} 36. Nd3 {[%clk 0:00:42]}  c5 {[%clk 0:00:21]} 37. Qe6 {[%clk 0:00:32]}  Kc7 {[%clk 0:00:21]} 38. c4 {[%clk 0:00:26]}  Rg6 {[%clk 0:00:12]} 39. Qf7 {[%clk 0:00:23]}  dxc4 {[%clk 0:00:12]} 40. Qxc4 {[%clk 0:00:20]}  Rf6 {[%clk 0:00:13]} 41. Nxc5 {[%clk 0:00:16]}  Bxc5 {[%clk 0:00:13]} 42. Qxc5+ {[%clk 0:00:16]}  Rc6 {[%clk 0:00:14]} 43. b4 {[%clk 0:00:15]}  Rxc5+ {[%clk 0:00:14]} 44. bxc5 {[%clk 0:00:16]}  Kc6 {[%clk 0:00:15]} 45. Kd3 {[%clk 0:00:17]}  Kxc5 {[%clk 0:00:16]} 46. Ke4 {[%clk 0:00:18]}  Ng6 {[%clk 0:00:05]} 47. Kf5 {[%clk 0:00:16]}  Nh4+ {[%clk 0:00:06]} 48. Kg4 {[%clk 0:00:17]}  Nxf3 {[%clk 0:00:06]} 49. Kxf3 {[%clk 0:00:18]}  Kb4 {[%clk 0:00:07]} 50. Ke4 {[%clk 0:00:19]}  Ka3 {[%clk 0:00:07]} 51. Kd4 {[%clk 0:00:19]}  Kxa2 {[%clk 0:00:08]} 52. Kc5 {[%clk 0:00:19]}  b5 {[%clk 0:00:09]} 0-1


[Site "https://www.chess.com"]

[Event "Titled Tuesday Blitz November 07 Late 2023"]
[White "Cristi_Coca"]
[Black "Zeltsan, Joseph"]
[BlackFideId "30932980"]
[WhiteElo "2485"]
[BlackElo "2684"]
[Result "0-1"]
[Round "4"]
[TimeControl "180+1"]
[Date "2023.11.07"]
[WhiteClock "0:00:30"]
[BlackClock "0:01:06"]
[Board "63"]

1. e4 {[%clk 0:03:00]}  c5 {[%clk 0:02:58]} 2. c3 {[%clk 0:03:01]}  e6 {[%clk 0:02:56]} 3. d4 {[%clk 0:02:57]}  d5 {[%clk 0:02:57]} 4. exd5 {[%clk 0:02:58]}  exd5 {[%clk 0:02:58]} 5. Nf3 {[%clk 0:02:57]}  Nf6 {[%clk 0:02:58]} 6. Bd3 {[%clk 0:02:57]}  Be7 {[%clk 0:02:58]} 7. O-O {[%clk 0:02:56]}  O-O {[%clk 0:02:59]} 8. Bg5 {[%clk 0:02:55]}  Bg4 {[%clk 0:02:47]} 9. h3 {[%clk 0:02:49]}  Bh5 {[%clk 0:02:47]} 10. dxc5 {[%clk 0:02:47]}  Bxc5 {[%clk 0:02:47]} 11. Nbd2 {[%clk 0:02:45]}  Nc6 {[%clk 0:02:44]} 12. Qc2 {[%clk 0:02:35]}  Bg6 {[%clk 0:02:36]} 13. Rad1 {[%clk 0:02:32]}  Rc8 {[%clk 0:02:35]} 14. Bxg6 {[%clk 0:02:26]}  hxg6 {[%clk 0:02:35]} 15. Nb3 {[%clk 0:02:26]}  Be7 {[%clk 0:02:30]} 16. Bxf6 {[%clk 0:02:21]}  Bxf6 {[%clk 0:02:30]} 17. Qd3 {[%clk 0:02:21]}  Ne7 {[%clk 0:02:20]} 18. Rfe1 {[%clk 0:02:20]}  Qd6 {[%clk 0:02:19]} 19. Nfd4 {[%clk 0:02:06]}  Rfd8 {[%clk 0:02:17]} 20. Nb5 {[%clk 0:02:06]}  Qb6 {[%clk 0:02:11]} 21. N5d4 {[%clk 0:02:06]}  a6 {[%clk 0:02:09]} 22. Qf3 {[%clk 0:02:02]}  Nc6 {[%clk 0:02:03]} 23. Re2 {[%clk 0:01:59]}  Ne5 {[%clk 0:02:01]} 24. Qg3 {[%clk 0:01:50]}  Nc4 {[%clk 0:02:00]} 25. Qf3 {[%clk 0:01:36]}  Re8 {[%clk 0:01:43]} 26. Rxe8+ {[%clk 0:01:34]}  Rxe8 {[%clk 0:01:43]} 27. Rb1 {[%clk 0:01:12]}  Bxd4 {[%clk 0:01:23]} 28. Nxd4 {[%clk 0:01:08]}  Nd2 {[%clk 0:01:21]} 29. Qd1 {[%clk 0:01:07]}  Nxb1 {[%clk 0:01:21]} 30. Qxb1 {[%clk 0:01:08]}  Re4 {[%clk 0:01:12]} 31. Qc2 {[%clk 0:00:37]}  Re1+ {[%clk 0:01:09]} 32. Kh2 {[%clk 0:00:36]}  Qd6+ {[%clk 0:01:09]} 33. g3 {[%clk 0:00:37]}  Qe7 {[%clk 0:01:08]} 34. Nf3 {[%clk 0:00:30]}  Re2 {[%clk 0:01:06]} 0-1


[Site "https://www.chess.com"]

[Event "Titled Tuesday Blitz November 07 Late 2023"]
[White "Rozman, Levy"]
[Black "szachmistrz2500"]
[WhiteFideId "2039877"]
[WhiteElo "2672"]
[BlackElo "2458"]
[Result "1-0"]
[Round "4"]
[TimeControl "180+1"]
[Date "2023.11.07"]
[WhiteClock "0:00:08"]
[BlackClock "0:00:00"]
[Board "66"]

1. e4 {[%clk 0:03:00]}  c5 {[%clk 0:02:58]} 2. Nc3 {[%clk 0:03:00]}  e6 {[%clk 0:02:57]} 3. d4 {[%clk 0:03:00]}  cxd4 {[%clk 0:02:51]} 4. Qxd4 {[%clk 0:03:01]}  a6 {[%clk 0:02:51]} 5. Be3 {[%clk 0:02:55]}  Nc6 {[%clk 0:02:50]} 6. Qd2 {[%clk 0:02:54]}  Bb4 {[%clk 0:02:48]} 7. a3 {[%clk 0:02:54]}  Be7 {[%clk 0:02:48]} 8. f4 {[%clk 0:02:53]}  d6 {[%clk 0:02:46]} 9. Nf3 {[%clk 0:02:53]}  Nf6 {[%clk 0:02:45]} 10. h3 {[%clk 0:02:51]}  O-O {[%clk 0:02:43]} 11. g4 {[%clk 0:02:50]}  d5 {[%clk 0:02:43]} 12. e5 {[%clk 0:02:47]}  Nd7 {[%clk 0:02:31]} 13. Bd3 {[%clk 0:02:41]}  b5 {[%clk 0:02:30]} 14. Ne2 {[%clk 0:02:31]}  Bb7 {[%clk 0:02:27]} 15. c3 {[%clk 0:02:24]}  Nc5 {[%clk 0:02:23]} 16. Bc2 {[%clk 0:02:22]}  Ne4 {[%clk 0:02:23]} 17. Qd3 {[%clk 0:02:16]}  Na5 {[%clk 0:02:20]} 18. Ng3 {[%clk 0:01:59]}  Bh4 {[%clk 0:02:13]} 19. Nxh4 {[%clk 0:01:56]}  Qxh4 {[%clk 0:02:13]} 20. Bf2 {[%clk 0:01:54]}  Nxf2 {[%clk 0:02:10]} 21. Kxf2 {[%clk 0:01:55]}  d4 {[%clk 0:01:59]} 22. cxd4 {[%clk 0:01:43]}  Bxh1 {[%clk 0:01:57]} 23. Rxh1 {[%clk 0:01:44]}  Rfd8 {[%clk 0:01:52]} 24. Qe4 {[%clk 0:01:36]}  Rac8 {[%clk 0:01:44]} 25. Kg2 {[%clk 0:01:27]}  Rc4 {[%clk 0:01:08]} 26. Rd1 {[%clk 0:01:20]}  Nc6 {[%clk 0:01:06]} 27. Ne2 {[%clk 0:01:18]}  Ne7 {[%clk 0:01:01]} 28. Bb3 {[%clk 0:01:08]}  Rcc8 {[%clk 0:00:58]} 29. Nc3 {[%clk 0:00:57]}  h5 {[%clk 0:00:58]} 30. Qf3 {[%clk 0:00:49]}  Nd5 {[%clk 0:00:45]} 31. Bxd5 {[%clk 0:00:36]}  exd5 {[%clk 0:00:45]} 32. f5 {[%clk 0:00:30]}  hxg4 {[%clk 0:00:40]} 33. Qxg4 {[%clk 0:00:25]}  Qxg4+ {[%clk 0:00:38]} 34. hxg4 {[%clk 0:00:26]}  Rc4 {[%clk 0:00:37]} 35. Kf3 {[%clk 0:00:15]}  b4 {[%clk 0:00:37]} 36. axb4 {[%clk 0:00:16]}  Rxb4 {[%clk 0:00:38]} 37. Rd2 {[%clk 0:00:17]}  a5 {[%clk 0:00:33]} 38. g5 {[%clk 0:00:16]}  a4 {[%clk 0:00:32]} 39. Ke3 {[%clk 0:00:12]}  g6 {[%clk 0:00:30]} 40. Kf4 {[%clk 0:00:10]}  gxf5 {[%clk 0:00:26]} 41. Kxf5 {[%clk 0:00:11]}  Rb3 {[%clk 0:00:27]} 42. Nxa4 {[%clk 0:00:10]}  Rdb8 {[%clk 0:00:22]} 43. g6 {[%clk 0:00:08]}  Rf3+ {[%clk 0:00:19]} 44. Kg4 {[%clk 0:00:09]}  Rf1 {[%clk 0:00:19]} 45. gxf7+ {[%clk 0:00:04]}  Kxf7 {[%clk 0:00:19]} 46. Kh3 {[%clk 0:00:04]}  Rg1 {[%clk 0:00:16]} 47. Rf2+ {[%clk 0:00:05]}  Ke7 {[%clk 0:00:11]} 48. Kh2 {[%clk 0:00:04]}  Rg4 {[%clk 0:00:07]} 49. Kh3 {[%clk 0:00:03]}  Rxd4 {[%clk 0:00:06]} 50. Nc3 {[%clk 0:00:04]}  Rb3 {[%clk 0:00:04]} 51. Kg2 {[%clk 0:00:04]}  Ke6 {[%clk 0:00:04]} 52. Re2 {[%clk 0:00:04]}  Rd3 {[%clk 0:00:04]} 53. Na4 {[%clk 0:00:05]}  Rb4 {[%clk 0:00:04]} 54. Nc5+ {[%clk 0:00:05]}  Kf5 {[%clk 0:00:04]} 55. Nxd3 {[%clk 0:00:06]}  Rb3 {[%clk 0:00:04]} 56. Nf2 {[%clk 0:00:05]}  Rb8 {[%clk 0:00:05]} 57. e6 {[%clk 0:00:05]}  Rg8+ {[%clk 0:00:06]} 58. Kf3 {[%clk 0:00:05]}  Kf6 {[%clk 0:00:07]} 59. e7 {[%clk 0:00:05]}  Re8 {[%clk 0:00:07]} 60. Nd3 {[%clk 0:00:06]}  Rxe7 {[%clk 0:00:08]} 61. Rxe7 {[%clk 0:00:06]}  Kxe7 {[%clk 0:00:08]} 62. Ke3 {[%clk 0:00:07]}  Kd6 {[%clk 0:00:00]} 63. Kd4 {[%clk 0:00:08]} 1-0


[Site "https://www.chess.com"]

[Event "Titled Tuesday Blitz November 07 Late 2023"]
[White "Domingo Nunez, Ruben"]
[Black "UK_23"]
[WhiteFideId "22245570"]
[WhiteElo "2657"]
[BlackElo "2421"]
[Result "1-0"]
[Round "4"]
[TimeControl "180+1"]
[Date "2023.11.07"]
[WhiteClock "0:00:06"]
[BlackClock "0:00:14"]
[Board "70"]

1. b3 {[%clk 0:03:00]}  d5 {[%clk 0:02:56]} 2. Bb2 {[%clk 0:03:01]}  Nf6 {[%clk 0:02:55]} 3. Nf3 {[%clk 0:03:01]}  e6 {[%clk 0:02:56]} 4. e3 {[%clk 0:03:02]}  Be7 {[%clk 0:02:56]} 5. Be2 {[%clk 0:03:03]}  O-O {[%clk 0:02:57]} 6. O-O {[%clk 0:03:03]}  c5 {[%clk 0:02:56]} 7. c4 {[%clk 0:03:04]}  Nc6 {[%clk 0:02:54]} 8. Re1 {[%clk 0:03:04]}  d4 {[%clk 0:02:51]} 9. exd4 {[%clk 0:03:05]}  cxd4 {[%clk 0:02:52]} 10. Bf1 {[%clk 0:03:06]}  Re8 {[%clk 0:02:52]} 11. d3 {[%clk 0:03:06]}  Bb4 {[%clk 0:02:49]} 12. Nbd2 {[%clk 0:03:06]}  a5 {[%clk 0:02:46]} 13. a3 {[%clk 0:03:03]}  Bc5 {[%clk 0:02:46]} 14. Ng5 {[%clk 0:03:00]}  h6 {[%clk 0:02:44]} 15. Nge4 {[%clk 0:03:01]}  Nd7 {[%clk 0:02:42]} 16. Nxc5 {[%clk 0:02:59]}  Nxc5 {[%clk 0:02:43]} 17. g3 {[%clk 0:02:57]}  e5 {[%clk 0:02:41]} 18. Qf3 {[%clk 0:02:50]}  Qg5 {[%clk 0:02:33]} 19. Ne4 {[%clk 0:02:44]}  Nxe4 {[%clk 0:02:33]} 20. Qxe4 {[%clk 0:02:45]}  Bf5 {[%clk 0:02:30]} 21. Qd5 {[%clk 0:02:43]}  Rad8 {[%clk 0:02:28]} 22. Qb5 {[%clk 0:02:43]}  Re7 {[%clk 0:02:15]} 23. Bc1 {[%clk 0:02:41]}  Qg6 {[%clk 0:02:15]} 24. Bd2 {[%clk 0:02:19]}  Bxd3 {[%clk 0:02:10]} 25. Bxa5 {[%clk 0:02:19]}  Nxa5 {[%clk 0:01:55]} 26. Qxa5 {[%clk 0:02:20]}  Rde8 {[%clk 0:01:46]} 27. Bg2 {[%clk 0:02:19]}  b6 {[%clk 0:01:40]} 28. Qd5 {[%clk 0:01:56]}  Bc2 {[%clk 0:01:36]} 29. b4 {[%clk 0:01:50]}  d3 {[%clk 0:01:35]} 30. Be4 {[%clk 0:01:33]}  Qe6 {[%clk 0:01:23]} 31. Re3 {[%clk 0:01:13]}  Qxd5 {[%clk 0:01:16]} 32. cxd5 {[%clk 0:01:14]}  Rd8 {[%clk 0:01:16]} 33. Bxd3 {[%clk 0:01:13]}  Bb3 {[%clk 0:01:08]} 34. Be4 {[%clk 0:00:42]}  Bc4 {[%clk 0:00:48]} 35. a4 {[%clk 0:00:40]}  g6 {[%clk 0:00:47]} 36. Bg2 {[%clk 0:00:32]}  f5 {[%clk 0:00:43]} 37. a5 {[%clk 0:00:20]}  bxa5 {[%clk 0:00:42]} 38. bxa5 {[%clk 0:00:21]}  e4 {[%clk 0:00:42]} 39. a6 {[%clk 0:00:17]}  Ra7 {[%clk 0:00:41]} 40. Ra4 {[%clk 0:00:14]}  Bxd5 {[%clk 0:00:30]} 41. Bf1 {[%clk 0:00:15]}  Kf7 {[%clk 0:00:25]} 42. Rc3 {[%clk 0:00:14]}  Ke6 {[%clk 0:00:24]} 43. Rc5 {[%clk 0:00:09]}  Rd6 {[%clk 0:00:24]} 44. Rc8 {[%clk 0:00:07]}  h5 {[%clk 0:00:22]} 45. h4 {[%clk 0:00:07]}  Rb6 {[%clk 0:00:20]} 46. Ra1 {[%clk 0:00:06]}  Rc6 {[%clk 0:00:19]} 47. Rg8 {[%clk 0:00:05]}  Kf6 {[%clk 0:00:18]} 48. Rd8 {[%clk 0:00:06]}  Ke5 {[%clk 0:00:18]} 49. Rd1 {[%clk 0:00:04]}  Be6 {[%clk 0:00:18]} 50. Rb8 {[%clk 0:00:02]}  Bd5 {[%clk 0:00:16]} 51. Rb5 {[%clk 0:00:02]}  Rd6 {[%clk 0:00:16]} 52. Bc4 {[%clk 0:00:03]}  Rad7 {[%clk 0:00:15]} 53. Rbxd5+ {[%clk 0:00:03]}  Rxd5 {[%clk 0:00:16]} 54. Rxd5+ {[%clk 0:00:03]}  Rxd5 {[%clk 0:00:17]} 55. Bxd5 {[%clk 0:00:04]}  Kxd5 {[%clk 0:00:17]} 56. a7 {[%clk 0:00:05]}  Kd4 {[%clk 0:00:17]} 57. a8=Q {[%clk 0:00:05]}  e3 {[%clk 0:00:14]} 58. Qa7+ {[%clk 0:00:06]} 1-0


[Site "https://www.chess.com"]

[Event "Titled Tuesday Blitz November 07 Late 2023"]
[White "FuenfgegenWilly"]
[Black "Arman, Deniz"]
[BlackFideId "6302106"]
[WhiteElo "2419"]
[BlackElo "2654"]
[Result "1-0"]
[Round "4"]
[TimeControl "180+1"]
[Date "2023.11.07"]
[WhiteClock "0:00:46"]
[BlackClock "0:00:10"]
[Board "72"]

1. e4 {[%clk 0:03:00]}  d5 {[%clk 0:03:00]} 2. exd5 {[%clk 0:03:00]}  Qxd5 {[%clk 0:03:01]} 3. Nc3 {[%clk 0:03:00]}  Qd6 {[%clk 0:03:01]} 4. d4 {[%clk 0:02:59]}  Nf6 {[%clk 0:03:02]} 5. g3 {[%clk 0:02:59]}  Bg4 {[%clk 0:03:02]} 6. Qd3 {[%clk 0:02:55]}  Nc6 {[%clk 0:03:02]} 7. Nge2 {[%clk 0:02:53]}  Nb4 {[%clk 0:02:57]} 8. Qd2 {[%clk 0:02:49]}  Bf5 {[%clk 0:02:52]} 9. Nb5 {[%clk 0:02:40]}  Nxc2+ {[%clk 0:02:53]} 10. Qxc2 {[%clk 0:02:30]}  Bxc2 {[%clk 0:02:54]} 11. Nxd6+ {[%clk 0:02:29]}  exd6 {[%clk 0:02:49]} 12. Bg2 {[%clk 0:02:30]}  O-O-O {[%clk 0:02:48]} 13. Bg5 {[%clk 0:02:29]}  Be7 {[%clk 0:02:44]} 14. Rc1 {[%clk 0:02:29]}  Bf5 {[%clk 0:02:36]} 15. Nc3 {[%clk 0:02:29]}  Rhe8 {[%clk 0:02:13]} 16. O-O {[%clk 0:02:29]}  Kb8 {[%clk 0:01:52]} 17. Rfd1 {[%clk 0:02:18]}  h6 {[%clk 0:01:48]} 18. Bxf6 {[%clk 0:02:15]}  Bxf6 {[%clk 0:01:49]} 19. Nd5 {[%clk 0:02:16]}  c6 {[%clk 0:01:36]} 20. Nxf6 {[%clk 0:02:12]}  gxf6 {[%clk 0:01:37]} 21. Bf3 {[%clk 0:02:08]}  Be4 {[%clk 0:01:34]} 22. Kg2 {[%clk 0:02:08]}  d5 {[%clk 0:01:29]} 23. b4 {[%clk 0:02:08]}  a6 {[%clk 0:01:26]} 24. a4 {[%clk 0:02:06]}  Re6 {[%clk 0:01:26]} 25. Rc5 {[%clk 0:02:03]}  b6 {[%clk 0:01:24]} 26. Rc3 {[%clk 0:02:03]}  Kb7 {[%clk 0:01:22]} 27. Rd2 {[%clk 0:01:48]}  Rg8 {[%clk 0:01:21]} 28. Rb2 {[%clk 0:01:44]}  Rg4 {[%clk 0:01:04]} 29. Rd2 {[%clk 0:01:35]}  Rg5 {[%clk 0:01:01]} 30. Rb2 {[%clk 0:01:25]}  Rf5 {[%clk 0:01:01]} 31. g4 {[%clk 0:01:14]}  Rxf3 {[%clk 0:00:50]} 32. Rxf3 {[%clk 0:01:13]}  Bxf3+ {[%clk 0:00:46]} 33. Kxf3 {[%clk 0:01:13]}  Re4 {[%clk 0:00:47]} 34. Rd2 {[%clk 0:01:13]}  Kc7 {[%clk 0:00:38]} 35. h4 {[%clk 0:01:12]}  h5 {[%clk 0:00:35]} 36. g5 {[%clk 0:01:08]}  Rxh4 {[%clk 0:00:36]} 37. gxf6 {[%clk 0:01:08]}  Kd6 {[%clk 0:00:36]} 38. Re2 {[%clk 0:01:06]}  Rxd4 {[%clk 0:00:36]} 39. Re7 {[%clk 0:01:06]}  Rxb4 {[%clk 0:00:35]} 40. Rxf7 {[%clk 0:01:06]}  Rxa4 {[%clk 0:00:36]} 41. Rb7 {[%clk 0:01:04]}  Ra3+ {[%clk 0:00:31]} 42. Kf4 {[%clk 0:01:03]}  Ra4+ {[%clk 0:00:27]} 43. Kf5 {[%clk 0:00:56]}  Rg4 {[%clk 0:00:16]} 44. f7 {[%clk 0:00:55]}  Kc5 {[%clk 0:00:15]} 45. f8=Q+ {[%clk 0:00:54]}  Kb5 {[%clk 0:00:16]} 46. Qd8 {[%clk 0:00:53]}  Kc4 {[%clk 0:00:08]} 47. Qxb6 {[%clk 0:00:51]}  c5 {[%clk 0:00:09]} 48. Qxa6+ {[%clk 0:00:52]}  Kd4 {[%clk 0:00:09]} 49. Qa4+ {[%clk 0:00:51]}  c4 {[%clk 0:00:09]} 50. Qa7+ {[%clk 0:00:51]}  Kd3 {[%clk 0:00:09]} 51. Qe3+ {[%clk 0:00:51]}  Kc2 {[%clk 0:00:09]} 52. Qe2+ {[%clk 0:00:49]}  Kc3 {[%clk 0:00:10]} 53. Qe1+ {[%clk 0:00:49]}  Kd3 {[%clk 0:00:10]} 54. Qd1+ {[%clk 0:00:48]}  Kc3 {[%clk 0:00:10]} 55. Qc1+ {[%clk 0:00:47]}  Kd4 {[%clk 0:00:10]} 56. Qe3# {[%clk 0:00:46]} 1-0


[Site "https://www.chess.com"]